fUSD/lending_fUSD_20260530
["ID","MTS","AMOUNT","RATE_DAILY","PERIOD"]
[423434403,1780114243000,-25953.98229954,0.0002,2]
[423434401,1780114243000,-1493.07030921,0.0002,5]
[423434405,1780114243000,-3950.0,0.0002,2]
[423434414,1780114243000,-2286.66323501,0.0002,2]
[423434415,1780114243000,-1341.08516993,0.0002,2]
[423434416,1780114243000,-1223.0,0.0002,2]
[423434417,1780114243000,-1397.0,0.0002,2]
[423434335,1780114243000,-151.0,0.00019645,2]
[423434386,1780114243000,-163.0,0.00019928,2]
[423434392,1780114243000,-1945.0,0.0002,2]
[423434409,1780114243000,-49748.0664631,0.0002,2]
[423434383,1780114243000,-169.6857453,0.00019923,2]
[423434385,1780114243000,-2000.0,0.00019925,2]
[423434351,1780114243000,-153.55,0.00019645,2]
[423434349,1780114243000,-151.0,0.00019645,2]
[423434360,1780114243000,-151.0,0.00019645,2]
[423434343,1780114243000,-151.0,0.00019645,2]
[423434345,1780114243000,-151.0,0.00019645,2]
[423434353,1780114243000,-151.0,0.00019645,2]
[423434356,1780114243000,-151.0,0.00019645,2]
[423434367,1780114243000,-151.0,0.00019645,2]
[423434358,1780114243000,-151.0,0.00019645,2]
[423434363,1780114243000,-157.37,0.00019645,2]
[423434373,1780114243000,-1198.274765,0.000197,2]
[423434377,1780114243000,-152.0,0.00019772,24]
[423434379,1780114243000,-791.42,0.000199,2]
[423434375,1780114243000,-150.40601128,0.00019753,2]
[423434381,1780114243000,-500.0,0.00019901,2]
[423434369,1780114243000,-288.18,0.00019645,2]
[423434371,1780114243000,-151.0,0.00019645,2]
[423434365,1780114243000,-151.0,0.00019645,2]
[423434478,1780114244000,-238.60871557,0.000201,2]
[423434477,1780114244000,-230.09519341,0.000201,2]
[423434467,1780114244000,-151.0,0.000201,2]
[423434462,1780114244000,-151.0,0.000201,2]
[423434469,1780114244000,-1428.38747117,0.000201,2]
[423434475,1780114244000,-151.0,0.000201,2]
[423434465,1780114244000,-151.0,0.000201,2]
[423434491,1780114244000,-151.0,0.000201,2]
[423434487,1780114244000,-151.0,0.000201,2]
[423434481,1780114244000,-151.0,0.000201,2]
[423434482,1780114244000,-247.43723804,0.000201,2]
[423434485,1780114244000,-2080.17592889,0.000201,2]
[423434493,1780114244000,-266.08633524,0.000201,2]
[423434497,1780114244000,-275.93152964,0.000201,2]
[423434495,1780114244000,-151.0,0.000201,2]
[423434499,1780114244000,-151.0,0.000201,2]
[423434473,1780114244000,-221.88543241,0.000201,2]
[423434488,1780114244000,-256.59241585,0.000201,2]
[423434471,1780114244000,-151.0,0.000201,2]
[423434504,1780114244000,-296.7282131,0.000201,2]
[423434446,1780114244000,-152.0,0.0002001,25]
[423434418,1780114244000,-793.0,0.0002,2]
[423434420,1780114244000,-2649.0,0.0002,2]
[423434419,1780114244000,-2569.0,0.0002,2]
[423434422,1780114244000,-302.0,0.0002,2]
[423434425,1780114244000,-774.0,0.0002,2]
[423434431,1780114244000,-2368.0,0.0002,2]
[423434427,1780114244000,-3732.0,0.0002,2]
[423434429,1780114244000,-893.0,0.0002,2]
[423434433,1780114244000,-400.0,0.0002,2]
[423434435,1780114244000,-3228.0,0.0002,2]
[423434439,1780114244000,-200.0,0.0002,10]
[423434449,1780114244000,-300.0,0.000201,10]
[423434452,1780114244000,-151.0,0.000201,2]
[423434455,1780114244000,-151.0,0.000201,2]
[423434441,1780114244000,-2138.6,0.0002,2]
[423434456,1780114244000,-151.0,0.000201,2]
[423434438,1780114244000,-2038.0,0.0002,2]
[423434459,1780114244000,-151.0,0.000201,2]
[423434506,1780114244000,-307.70715698,0.000201,2]
[423434537,1780114244000,-168.74,0.00020475,2]
[423434505,1780114244000,-151.0,0.000201,2]
[423434549,1780114244000,-168.2,0.00020484,2]
[423434538,1780114244000,-152.32,0.00020475,2]
[423434531,1780114244000,-151.0,0.00020467,2]
[423434535,1780114244000,-156.61,0.00020467,2]
[423434536,1780114244000,-151.0,0.00020475,2]
[423434533,1780114244000,-151.0,0.00020467,2]
[423434534,1780114244000,-151.0,0.00020467,2]
[423434539,1780114244000,-151.0,0.00020475,2]
[423434541,1780114244000,-151.0,0.00020475,2]
[423434540,1780114244000,-157.41,0.00020475,2]
[423434542,1780114244000,-151.0,0.00020484,2]
[423434543,1780114244000,-204.55,0.00020484,2]
[423434544,1780114244000,-151.0,0.00020484,2]
[423434545,1780114244000,-151.0,0.00020484,2]
[423434547,1780114244000,-155.57,0.00020484,2]
[423434546,1780114244000,-151.0,0.00020484,2]
[423434502,1780114244000,-286.14099624,0.000201,2]
[423434532,1780114244000,-151.0,0.00020467,2]
[423434527,1780114244000,-151.0,0.00020464,2]
[423434548,1780114244000,-151.0,0.00020484,2]
[423434524,1780114244000,-1341.08516993,0.000204,2]
[423434508,1780114244000,-319.09232179,0.000201,2]
[423434503,1780114244000,-151.0,0.000201,2]
[423434509,1780114244000,-151.0,0.000201,2]
[423434515,1780114244000,-151.0,0.000201,2]
[423434518,1780114244000,-2318.0,0.00020223,2]
[423434513,1780114244000,-151.0,0.000201,2]
[423434516,1780114244000,-1590.0,0.00020128,2]
[423434517,1780114244000,-1341.08516993,0.000202,2]
[423434511,1780114244000,-151.0,0.000201,2]
[423434526,1780114244000,-151.0,0.00020464,2]
[423434521,1780114244000,-2000.0,0.000203,2]
[423434519,1780114244000,-152.0,0.00020249,26]
[423434530,1780114244000,-152.52,0.00020467,2]
[423434522,1780114244000,-500.0,0.00020309,2]
[423434525,1780114244000,-151.0,0.00020464,2]
[423434528,1780114244000,-174.07,0.00020464,2]
[423434520,1780114244000,-640.0,0.00020266,2]
[423434529,1780114244000,-157.29,0.00020467,2]
[423434523,1780114244000,-2929.9,0.00020381,2]
[423434574,1780114245000,-1210.92125144,0.00021,2]
[423434570,1780114245000,-1226.0,0.0002099,2]
[423434573,1780114245000,-696.38,0.00021,2]
[423434576,1780114245000,-200.0,0.00021,2]
[423434575,1780114245000,-199.85524174,0.00021,2]
[423434572,1780114245000,-932.0,0.0002099,2]
[423434567,1780114245000,-1356.0,0.00020978,2]
[423434586,1780114245000,-893.0,0.00021,2]
[423434579,1780114245000,-1397.0,0.00021,2]
[423434578,1780114245000,-1223.0,0.00021,2]
[423434583,1780114245000,-302.0,0.00021,2]
[423434582,1780114245000,-2649.0,0.00021,2]
[423434581,1780114245000,-2569.0,0.00021,2]
[423434580,1780114245000,-793.0,0.00021,2]
[423434587,1780114245000,-2368.0,0.00021,2]
[423434569,1780114245000,-1272.0,0.00020978,2]
[423434577,1780114245000,-1341.08516993,0.00021,2]
[423434563,1780114245000,-4916.81132896,0.000209,30]
[423434559,1780114245000,-152.0,0.00020726,28]
[423434566,1780114245000,-517.815,0.00020978,2]
[423434584,1780114245000,-774.0,0.00021,2]
[423434552,1780114245000,-1481.2378076,0.00020648,2]
[423434550,1780114245000,-152.0,0.00020488,27]
[423434553,1780114245000,-2157.14243826,0.00020648,2]
[423434551,1780114245000,-1341.08516993,0.000206,2]
[423434557,1780114245000,-1261.46563816,0.00020717,2]
[423434556,1780114245000,-2008.0,0.000207,2]
[423434565,1780114245000,-3550.0,0.00020978,2]
[423434555,1780114245000,-20314.9211716,0.000207,2]
[423434554,1780114245000,-350.0,0.00020668,2]
[423434561,1780114245000,-209.802845,0.00020821,2]
[423434560,1780114245000,-1341.08516993,0.000208,2]
[423434564,1780114245000,-152.0,0.00020965,29]
[423434568,1780114245000,-525.0,0.00020978,2]
[423434571,1780114245000,-3638.0,0.0002099,2]
[423434562,1780114245000,-1590.0,0.00020863,2]
[423434558,1780114245000,-500.0,0.00020717,2]
[423434591,1780114245000,-500.0,0.00021125,2]
[423434589,1780114245000,-163.0,0.00021088,2]
[423434627,1780114245000,-1000.0,0.000215,2]
[423434607,1780114245000,-151.0,0.00021289,2]
[423434611,1780114245000,-158.79742784,0.00021332,2]
[423434612,1780114245000,-196.26538079,0.00021335,2]
[423434616,1780114245000,-1341.08516993,0.000214,2]
[423434617,1780114245000,-194.674,0.000214,5]
[423434622,1780114245000,-225.46885825,0.000215,2]
[423434614,1780114245000,-163.0,0.0002138,2]
[423434608,1780114245000,-2318.0,0.000213,2]
[423434623,1780114245000,-1005.0783081,0.000215,2]
[423434620,1780114245000,-152.0,0.00021442,31]
[423434621,1780114245000,-350.0,0.00021455,2]
[423434619,1780114245000,-166.0,0.00021408,2]
[423434625,1780114245000,-1000.0,0.000215,2]
[423434626,1780114245000,-1000.0,0.000215,2]
[423434624,1780114245000,-1000.0,0.000215,2]
[423434588,1780114245000,-2038.0,0.00021,2]
[423434618,1780114245000,-200.0,0.000214,2]
[423434610,1780114245000,-200.0,0.00021327,2]
[423434615,1780114245000,-274.69101063,0.00021399,2]
[423434613,1780114245000,-196.26538079,0.00021335,2]
[423434606,1780114245000,-151.0,0.00021289,2]
[423434590,1780114245000,-3331.1143567,0.00021103,2]
[423434595,1780114245000,-791.42,0.000212,2]
[423434592,1780114245000,-194.9177018,0.00021127,2]
[423434594,1780114245000,-2236.95670847,0.00021196,2]
[423434593,1780114245000,-1536.04360648,0.00021196,2]
[423434596,1780114245000,-1341.08516993,0.000212,2]
[423434597,1780114245000,-365.1,0.000212,7]
[423434600,1780114245000,-693.7,0.00021273,2]
[423434585,1780114245000,-3732.0,0.00021,2]
[423434601,1780114245000,-981.63781,0.0002128,2]
[423434599,1780114245000,-29052.98,0.00021273,2]
[423434598,1780114245000,-152.0,0.00021203,30]
[423434605,1780114245000,-151.0,0.00021286,2]
[423434603,1780114245000,-981.63782,0.0002128,2]
[423434604,1780114245000,-168.23450229,0.00021286,2]
[423434609,1780114245000,-276.84809545,0.000213,2]
[423434602,1780114245000,-981.63781,0.0002128,2]
[423434645,1780114246000,-464.32833082,0.000215,2]
[423434648,1780114246000,-258.56367956,0.00021605,2]
[423434647,1780114246000,-500.0,0.00021534,2]
[423434655,1780114246000,-2319.72410669,0.00021744,2]
[423434656,1780114246000,-151.0,0.00021761,4]
[423434657,1780114246000,-2138.6,0.00021761,2]
[423434660,1780114246000,-432.65,0.00021918,2]
[423434658,1780114246000,-1341.08516993,0.000219,2]
[423434662,1780114246000,-806.15912236,0.00021918,2]
[423434659,1780114246000,-5000.0,0.00021918,2]
[423434661,1780114246000,-810.85814051,0.00021918,2]
[423434663,1780114246000,-315.91,0.00021918,2]
[423434666,1780114246000,-152.0,0.00021919,33]
[423434667,1780114246000,-500.0,0.00021942,2]
[423434674,1780114246000,-302.0,0.00022,2]
[423434665,1780114246000,-500.0,0.00021918,2]
[423434664,1780114246000,-315.91,0.00021918,2]
[423434653,1780114246000,-1341.08516993,0.000217,2]
[423434668,1780114246000,-300.0,0.00021999,2]
[423434651,1780114246000,-501.13708143,0.00021693,2]
[423434630,1780114246000,-1000.0,0.000215,2]
[423434633,1780114246000,-150.0,0.000215,2]
[423434629,1780114246000,-1000.0,0.000215,2]
[423434628,1780114246000,-1000.0,0.000215,2]
[423434631,1780114246000,-440.49,0.000215,2]
[423434642,1780114246000,-981.63781,0.000215,2]
[423434640,1780114246000,-704.82174697,0.000215,2]
[423434649,1780114246000,-258.56367956,0.00021605,2]
[423434636,1780114246000,-415.19486804,0.000215,2]
[423434641,1780114246000,-1008.53156636,0.000215,2]
[423434638,1780114246000,-150.0,0.000215,2]
[423434644,1780114246000,-981.63781,0.000215,2]
[423434646,1780114246000,-280.01383606,0.00021533,2]
[423434652,1780114246000,-322.27879044,0.00021699,2]
[423434654,1780114246000,-1592.87721992,0.00021744,2]
[423434650,1780114246000,-152.0,0.00021681,32]
[423434643,1780114246000,-981.63782,0.000215,2]
[423434669,1780114246000,-1223.0,0.00022,2]
[423434704,1780114246000,-300.0,0.00022199,2]
[423434670,1780114246000,-1397.0,0.00022,2]
[423434690,1780114246000,-151.0,0.00022119,2]
[423434691,1780114246000,-151.0,0.00022119,2]
[423434688,1780114246000,-189.01,0.00022111,2]
[423434698,1780114246000,-151.0,0.00022122,2]
[423434700,1780114246000,-151.0,0.00022127,2]
[423434701,1780114246000,-151.0,0.00022127,2]
[423434699,1780114246000,-151.0,0.00022127,2]
[423434689,1780114246000,-350.0,0.00022111,2]
[423434708,1780114246000,-500.0,0.0002235,2]
[423434703,1780114246000,-152.0,0.00022158,34]
[423434702,1780114246000,-154.11,0.00022135,2]
[423434697,1780114246000,-151.45,0.00022122,2]
[423434706,1780114246000,-1651.81367706,0.00022292,2]
[423434707,1780114246000,-2405.55389863,0.00022292,2]
[423434709,1780114246000,-1366.50167859,0.00022353,2]
[423434673,1780114246000,-2649.0,0.00022,2]
[423434705,1780114246000,-200.0,0.00022242,2]
[423434694,1780114246000,-151.0,0.00022119,2]
[423434696,1780114246000,-151.0,0.00022122,2]
[423434687,1780114246000,-151.0,0.00022111,2]
[423434671,1780114246000,-793.0,0.00022,2]
[423434672,1780114246000,-2569.0,0.00022,2]
[423434675,1780114246000,-774.0,0.00022,2]
[423434693,1780114246000,-151.0,0.00022119,2]
[423434677,1780114246000,-893.0,0.00022,2]
[423434681,1780114246000,-627.74,0.00022,2]
[423434683,1780114246000,-355.74445286,0.00022043,2]
[423434682,1780114246000,-160.12690817,0.00022001,2]
[423434676,1780114246000,-3732.0,0.00022,2]
[423434684,1780114246000,-350.0,0.0002207,2]
[423434680,1780114246000,-2038.0,0.00022,2]
[423434679,1780114246000,-450.0,0.00022,2]
[423434686,1780114246000,-151.0,0.00022108,2]
[423434695,1780114246000,-151.79,0.00022122,2]
[423434692,1780114246000,-153.24,0.00022119,2]
[423434685,1780114246000,-500.0,0.00022082,2]
[423434678,1780114246000,-2368.0,0.00022,2]
[423434757,1780114248000,-5000.0,0.00014602,2]
[423434759,1780114248000,-500.0,0.00014786,2]
[423434760,1780114248000,-500.0,0.00014786,2]
[423434761,1780114248000,-500.0,0.00014999,2]
[423434762,1780114248000,-500.0,0.00014999,2]
[423434763,1780114248000,-1520.01442885,0.00018695,2]
[423434758,1780114248000,-500.0,0.00014786,2]
[423434765,1780114249000,-1691.06835796,0.0001399,2]
[423434764,1780114249000,-3495.59123116,0.0001399,2]
[423434768,1780114249000,-665.01971312,0.0001399,2]
[423434766,1780114249000,-1341.50780839,0.0001399,2]
[423434767,1780114249000,-3276.66493699,0.0001399,2]
[423434769,1780114249000,-1026.22803777,0.0001399,2]
[423434771,1780114249000,-6002.39585041,0.0001399,2]
[423434773,1780114249000,-671.62652613,0.0001399,2]
[423434772,1780114249000,-548.38063715,0.0001399,2]
[423434775,1780114249000,-313.15173584,0.0001399,2]
[423434770,1780114249000,-284.18094494,0.0001399,2]
[423434774,1780114249000,-4547.69390979,0.0001399,2]
[423434800,1780114250000,-392.0,0.000215,7]
[423434796,1780114250000,-10222.1983,0.00013299,2]
[423434801,1780114250000,-3000.0,0.0002226,7]
[423434797,1780114250000,-1684.06490528,0.00018005,2]
[423434794,1780114250000,-290.23513472,0.00018005,2]
[423434802,1780114250000,-1563.39832141,0.00022353,2]
[423434804,1780114250000,-152.0,0.00022397,35]
[423434812,1780114250000,-175.88428141,0.00022605,2]
[423434805,1780114250000,-350.0,0.00022455,2]
[423434806,1780114250000,-414.12,0.00022466,2]
[423434803,1780114250000,-219.0700863,0.00022365,2]
[423434808,1780114250000,-922.0,0.0002258,3]
[423434811,1780114250000,-791.42,0.000226,7]
[423434809,1780114250000,-699.0,0.0002258,3]
[423434810,1780114250000,-307.16575562,0.00022599,2]
[423434814,1780114250000,-3370.56,0.00022691,2]
[423434807,1780114250000,-350.0,0.0002257,2]
[423434799,1780114250000,-6066.0,0.00021005,2]
[423434793,1780114250000,-152.0,0.0001643,2]
[423434795,1780114250000,-4091.69996,0.00018005,2]
[423434777,1780114250000,-268.49580001,0.0001399,2]
[423434779,1780114250000,-601.71500188,0.0001399,2]
[423434778,1780114250000,-1341.74535061,0.0001399,2]
[423434776,1780114250000,-251.45589904,0.0001399,2]
[423434780,1780114250000,-30291.98694077,0.0001399,2]
[423434789,1780114250000,-500.0,0.00014999,2]
[423434782,1780114250000,-500.0,0.00014999,2]
[423434786,1780114250000,-500.0,0.00014999,2]
[423434791,1780114250000,-5335.78513472,0.00015005,2]
[423434781,1780114250000,-3381.09131804,0.0001399,2]
[423434788,1780114250000,-500.0,0.00014999,2]
[423434790,1780114250000,-640.83519264,0.00014999,2]
[423434783,1780114250000,-500.0,0.00014999,2]
[423434784,1780114250000,-500.0,0.00014999,2]
[423434785,1780114250000,-500.0,0.00014999,2]
[423434813,1780114250000,-152.0,0.00022635,36]
[423434792,1780114250000,-730.21486528,0.00015005,2]
[423434798,1780114250000,-4279.98557115,0.00018695,2]
[423434815,1780114250000,-2307.25,0.00022691,2]
[423434787,1780114250000,-500.0,0.00014999,2]
[423434819,1780114250000,-614.0767096,0.00022737,2]
[423434834,1780114250000,-300.0,0.00022899,2]
[423434841,1780114250000,-158.06,0.00022941,2]
[423434833,1780114250000,-152.0,0.00022874,37]
[423434840,1780114250000,-614.0767096,0.00022934,2]
[423434839,1780114250000,-155.35,0.00022933,2]
[423434848,1780114250000,-151.0,0.00022944,2]
[423434855,1780114250000,-151.0,0.00022957,2]
[423434853,1780114250000,-151.0,0.00022957,2]
[423434852,1780114250000,-151.0,0.00022957,2]
[423434847,1780114250000,-151.0,0.00022944,2]
[423434850,1780114250000,-1102.92,0.00022948,2]
[423434846,1780114250000,-151.0,0.00022944,2]
[423434844,1780114250000,-151.0,0.00022944,2]
[423434854,1780114250000,-151.0,0.00022957,2]
[423434845,1780114250000,-151.0,0.00022944,2]
[423434849,1780114250000,-614.0767096,0.00022946,2]
[423434851,1780114250000,-614.0767096,0.00022954,2]
[423434835,1780114250000,-614.0767096,0.00022928,2]
[423434838,1780114250000,-151.0,0.00022932,2]
[423434817,1780114250000,-315.61573734,0.00022709,7]
[423434836,1780114250000,-151.0,0.0002293,2]
[423434843,1780114250000,-151.0,0.00022944,2]
[423434816,1780114250000,-170.50751606,0.00022699,2]
[423434818,1780114250000,-614.0767096,0.00022735,2]
[423434821,1780114250000,-500.0,0.00022758,2]
[423434822,1780114250000,-151.0,0.00022761,4]
[423434820,1780114250000,-614.0767096,0.00022749,2]
[423434828,1780114250000,-47.07453521,0.00022858,2]
[423434826,1780114250000,-614.0767096,0.00022855,2]
[423434823,1780114250000,-614.0767096,0.00022835,2]
[423434824,1780114250000,-1712.93078311,0.0002284,2]
[423434829,1780114250000,-300.0,0.00022859,2]
[423434830,1780114250000,-5296.76888097,0.0002286,2]
[423434837,1780114250000,-213.82840546,0.00022932,2]
[423434827,1780114250000,-567.00217439,0.00022858,2]
[423434831,1780114250000,-9428.93611977,0.0002286,2]
[423434832,1780114250000,-614.0767096,0.00022863,2]
[423434842,1780114250000,-207.83,0.00022944,2]
[423434825,1780114250000,-2494.55939288,0.0002284,2]
[423434884,1780114251000,-151.0,0.00022972,2]
[423434879,1780114251000,-151.0,0.00022957,2]
[423434873,1780114251000,-151.29,0.00022957,2]
[423434890,1780114251000,-151.0,0.00022972,2]
[423434880,1780114251000,-151.0,0.00022957,2]
[423434883,1780114251000,-151.0,0.00022972,2]
[423434881,1780114251000,-151.0,0.00022957,2]
[423434882,1780114251000,-151.0,0.00022972,2]
[423434891,1780114251000,-151.0,0.00022972,2]
[423434887,1780114251000,-233.11,0.00022972,2]
[423434888,1780114251000,-151.0,0.00022972,2]
[423434885,1780114251000,-151.0,0.00022972,2]
[423434889,1780114251000,-151.0,0.00022972,2]
[423434902,1780114251000,-152.42,0.00022972,2]
[423434895,1780114251000,-151.0,0.00022972,2]
[423434892,1780114251000,-151.0,0.00022972,2]
[423434867,1780114251000,-151.0,0.00022957,2]
[423434886,1780114251000,-151.0,0.00022972,2]
[423434870,1780114251000,-155.49,0.00022957,2]
[423434863,1780114251000,-151.0,0.00022957,2]
[423434877,1780114251000,-151.0,0.00022957,2]
[423434893,1780114251000,-151.43,0.00022972,2]
[423434856,1780114251000,-151.0,0.00022957,2]
[423434860,1780114251000,-151.0,0.00022957,2]
[423434861,1780114251000,-151.0,0.00022957,2]
[423434859,1780114251000,-151.0,0.00022957,2]
[423434866,1780114251000,-151.0,0.00022957,2]
[423434858,1780114251000,-151.0,0.00022957,2]
[423434857,1780114251000,-151.0,0.00022957,2]
[423434862,1780114251000,-151.0,0.00022957,2]
[423434864,1780114251000,-151.0,0.00022957,2]
[423434865,1780114251000,-151.0,0.00022957,2]
[423434876,1780114251000,-151.0,0.00022957,2]
[423434872,1780114251000,-151.0,0.00022957,2]
[423434871,1780114251000,-151.0,0.00022957,2]
[423434878,1780114251000,-151.0,0.00022957,2]
[423434868,1780114251000,-151.0,0.00022957,2]
[423434874,1780114251000,-151.0,0.00022957,2]
[423434875,1780114251000,-151.0,0.00022957,2]
[423434894,1780114251000,-151.0,0.00022972,2]
[423434869,1780114251000,-151.0,0.00022957,2]
[423434897,1780114251000,-151.0,0.00022972,2]
[423434918,1780114251000,-2038.0,0.00023,2]
[423434921,1780114251000,-152.0,0.00023112,38]
[423434915,1780114251000,-2500.0,0.00023,20]
[423434923,1780114251000,-500.0,0.00023166,2]
[423434917,1780114251000,-2368.0,0.00023,2]
[423434914,1780114251000,-3732.0,0.00023,2]
[423434896,1780114251000,-151.0,0.00022972,2]
[423434936,1780114251000,-447.12229456,0.00023257,7]
[423434930,1780114251000,-150.0,0.00023203,2]
[423434926,1780114251000,-150.0,0.00023203,2]
[423434929,1780114251000,-150.0,0.00023203,2]
[423434928,1780114251000,-150.0,0.00023203,2]
[423434931,1780114251000,-150.0,0.00023203,2]
[423434932,1780114251000,-240.3124434,0.00023213,2]
[423434935,1780114251000,-150.0,0.00023238,4]
[423434933,1780114251000,-434.53205025,0.00023214,2]
[423434934,1780114251000,-179.54465935,0.00023214,2]
[423434922,1780114251000,-614.0767096,0.00023121,2]
[423434937,1780114251000,-16.44664609,0.00023272,4]
[423434927,1780114251000,-150.0,0.00023203,2]
[423434920,1780114251000,-253.06,0.00023097,2]
[423434901,1780114251000,-151.0,0.00022972,2]
[423434900,1780114251000,-154.17,0.00022972,2]
[423434899,1780114251000,-152.45,0.00022972,2]
[423434905,1780114251000,-151.0,0.00022997,7]
[423434903,1780114251000,-160.92867314,0.00022978,21]
[423434910,1780114251000,-2569.0,0.00023,2]
[423434913,1780114251000,-774.0,0.00023,2]
[423434911,1780114251000,-2649.0,0.00023,2]
[423434906,1780114251000,-818.93,0.00023,2]
[423434912,1780114251000,-302.0,0.00023,2]
[423434907,1780114251000,-1223.0,0.00023,2]
[423434904,1780114251000,-536.54675348,0.00022983,7]
[423434909,1780114251000,-793.0,0.00023,2]
[423434908,1780114251000,-1397.0,0.00023,2]
[423434924,1780114251000,-169.6857453,0.00023198,2]
[423434925,1780114251000,-150.0,0.00023203,2]
[423434919,1780114251000,-200.0,0.00023029,2]
[423434898,1780114251000,-151.0,0.00022972,2]
[423434916,1780114251000,-893.0,0.00023,2]
[423434938,1780114419000,-200.51158972,0.00011424,7]
[423434939,1780114541000,176.47,0.00028,120]
[423434940,1780114635000,1600.0,0.00024716,120]
[423434943,1780114862000,641.74,0.00027902,120]
[423434947,1780115001000,-150.0,0.000112,2]
[423434950,1780115054000,-194.72313787,0.00011131,2]
[423434953,1780115109000,-160.12153149,0.00011166,2]
[423434954,1780115140000,528.12,0.00028032,120]
[423434955,1780115160000,-150.0,0.000112,2]
[423434956,1780115215000,-1097.371468,0.00011144,2]
[423434957,1780115268000,-150.0,0.00010809,2]
[423434958,1780115322000,-194.72313786,0.0001113,2]
[423434960,1780115340000,1000.0,0.0002808,120]
[423434961,1780115373000,-500.0,0.00011229,2]
[423434962,1780115427000,-549.29611455,0.0001,2]
[423435107,1780115450000,-549.29611455,0.0001,2]
[423435109,1780115450000,-177.55718422,0.0001,2]
[423435110,1780115450000,-166.87100473,0.0001123,2]
[423435111,1780115450000,-278.65625203,0.0001123,2]
[423435112,1780115450000,-162.36633385,0.0001123,2]
[423435113,1780115450000,-300.0,0.0001123,2]
[423435114,1780115450000,-1200.0,0.0001123,2]
[423435116,1780115450000,-264.19920638,0.00011231,2]
[423435117,1780115450000,-735.80079362,0.00011231,2]
[423435115,1780115450000,-285.50605037,0.0001123,2]
[423435108,1780115450000,-1255.85058668,0.0001,2]
[423435153,1780115451000,-150.0,0.00013488,2]
[423435157,1780115451000,-150.50374372,0.00013533,2]
[423435152,1780115451000,-150.0,0.00013488,2]
[423435150,1780115451000,-150.0,0.00013488,2]
[423435151,1780115451000,-150.0,0.00013488,2]
[423435149,1780115451000,-150.0,0.00013488,2]
[423435156,1780115451000,-150.50374372,0.00013518,2]
[423435158,1780115451000,-150.0,0.00013541,2]
[423435148,1780115451000,-150.0,0.00013488,2]
[423435155,1780115451000,-150.50374372,0.00013503,2]
[423435154,1780115451000,-150.50374372,0.00013488,2]
[423435159,1780115451000,-150.50374372,0.00013548,2]
[423435162,1780115451000,-150.0,0.00013563,2]
[423435169,1780115451000,-150.0,0.0001363,2]
[423435147,1780115451000,-279.72240255,0.00013488,2]
[423435167,1780115451000,-150.50374372,0.00013609,2]
[423435160,1780115451000,-500.0,0.00013559,2]
[423435164,1780115451000,-150.50374372,0.00013578,2]
[423435165,1780115451000,-150.50374372,0.00013594,2]
[423435166,1780115451000,-150.0,0.00013595,2]
[423435168,1780115451000,-150.50374372,0.00013624,2]
[423435163,1780115451000,-150.50374372,0.00013563,2]
[423435170,1780115451000,-150.0,0.00013638,2]
[423435171,1780115451000,-150.50374372,0.00013639,2]
[423435173,1780115451000,-156.56,0.00013646,2]